[Event "Late-Titled-Tuesday-Blitz-April-30-2024"]
[Site "Chess.com"]
[Date "2024.04.30"]
[Round "3"]
[White "baki83"]
[Black "Naoki"]
[Result "1-0"]
[WhiteElo "2908"]
[BlackElo "2619"]
[TimeControl "180+1"]
[EndTime "14:30:47 PDT"]
[Termination "baki83 won by resignation"]

1. e4 {[%clk 0:02:58.4]} 1... e5 {[%clk 0:02:59.9]} 2. Nf3 {[%clk 0:02:58.3]}
2... Nc6 {[%clk 0:03:00.2]} 3. Bb5 {[%clk 0:02:58.4]} 3... a6 {[%clk 0:03:00.4]}
4. Ba4 {[%clk 0:02:58.8]} 4... Nf6 {[%clk 0:03:00.5]} 5. d3 {[%clk 0:02:59.1]}
5... b5 {[%clk 0:03:00.1]} 6. Bb3 {[%clk 0:02:59.1]} 6... Bc5 {[%clk 0:03:00.8]}
7. Nc3 {[%clk 0:02:44.3]} 7... d6 {[%clk 0:02:58.8]} 8. Nd5 {[%clk 0:02:42.2]}
8... h6 {[%clk 0:02:58.5]} 9. c3 {[%clk 0:02:36.8]} 9... Be6 {[%clk 0:02:58.3]}
10. O-O {[%clk 0:02:30.2]} 10... Bxd5 {[%clk 0:02:27.5]} 11. exd5 {[%clk
0:02:30]} 11... Ne7 {[%clk 0:02:27.6]} 12. d4 {[%clk 0:02:30.5]} 12... exd4
{[%clk 0:02:26.9]} 13. Nxd4 {[%clk 0:02:30.3]} 13... O-O {[%clk 0:02:20.1]} 14.
Qf3 {[%clk 0:02:05.6]} 14... Bxd4 {[%clk 0:01:55]} 15. cxd4 {[%clk 0:02:06.5]}
15... Ng6 {[%clk 0:01:55.2]} 16. Be3 {[%clk 0:01:59.8]} 16... Qd7 {[%clk
0:01:32.8]} 17. Bc2 {[%clk 0:01:38.6]} 17... Nh4 {[%clk 0:00:50.8]} 18. Qg3
{[%clk 0:01:38.9]} 18... Ng6 {[%clk 0:00:23.3]} 19. Bxg6 {[%clk 0:01:29.4]}
19... fxg6 {[%clk 0:00:23.7]} 20. Qxg6 {[%clk 0:01:30]} 20... Nxd5 {[%clk
0:00:24.3]} 21. Bxh6 {[%clk 0:01:28]} 21... Rf6 {[%clk 0:00:24.5]} 22. Qe4
{[%clk 0:01:13.5]} 22... c6 {[%clk 0:00:16]} 23. Bg5 {[%clk 0:01:09.9]} 23...
Re8 {[%clk 0:00:14.8]} 24. Qd3 {[%clk 0:00:50.5]} 24... Rf5 {[%clk 0:00:14.6]}
25. h4 {[%clk 0:00:49.4]} 25... Nf4 {[%clk 0:00:09]} 26. Bxf4 {[%clk 0:00:45.8]}
26... Rxf4 {[%clk 0:00:09.8]} 27. g3 {[%clk 0:00:46.2]} 27... Rf6 {[%clk
0:00:06.5]} 28. Rae1 {[%clk 0:00:42.1]} 28... Ref8 {[%clk 0:00:06.2]} 29. Re3
{[%clk 0:00:34.8]} 29... Qh3 {[%clk 0:00:05.7]} 30. Qe4 {[%clk 0:00:19.4]} 30...
d5 {[%clk 0:00:05]} 31. Qg2 {[%clk 0:00:19]} 31... Qg4 {[%clk 0:00:04.6]} 32. f4
{[%clk 0:00:18.4]} 32... Qf5 {[%clk 0:00:02.2]} 33. Rfe1 {[%clk 0:00:17.3]}
33... Qg4 {[%clk 0:00:02.2]} 34. Re5 {[%clk 0:00:15]} 34... Qg6 {[%clk
0:00:01.8]} 35. a3 {[%clk 0:00:12.5]} 35... Qf7 {[%clk 0:00:02.2]} 36. h5 {[%clk
0:00:12.8]} 36... Rf5 {[%clk 0:00:02.3]} 37. Qh3 {[%clk 0:00:11]} 37... Rxe5
{[%clk 0:00:01.3]} 38. dxe5 {[%clk 0:00:11]} 38... Qf5 {[%clk 0:00:01.4]} 39.
Qh2 {[%clk 0:00:05.9]} 39... d4 {[%clk 0:00:01.8]} 40. h6 {[%clk 0:00:06]} 40...
g6 {[%clk 0:00:01.7]} 41. e6 {[%clk 0:00:06.4]} 41... Re8 {[%clk 0:00:01.8]} 42.
e7 {[%clk 0:00:06.8]} 42... Qf7 {[%clk 0:00:01.6]} 43. Qh4 {[%clk 0:00:06.4]}
43... Kh7 {[%clk 0:00:02.2]} 44. Qg5 {[%clk 0:00:06]} 44... Qf5 {[%clk
0:00:02.2]} 45. Qxf5 {[%clk 0:00:05.7]} 45... gxf5 {[%clk 0:00:03.1]} 46. Kf2
{[%clk 0:00:05.7]} 46... Kxh6 {[%clk 0:00:03.6]} 47. Re6+ {[%clk 0:00:06.3]}
47... Kg7 {[%clk 0:00:04.2]} 48. Rxc6 {[%clk 0:00:07]} 48... Rxe7 {[%clk
0:00:04.9]} 49. Rxa6 {[%clk 0:00:07.5]} 49... Rc7 {[%clk 0:00:05.6]} 50. Rd6
{[%clk 0:00:07.9]} 50... Rc2+ {[%clk 0:00:05.7]} 51. Kf1 {[%clk 0:00:06.2]}
51... Rxb2 {[%clk 0:00:05.2]} 52. Rxd4 {[%clk 0:00:06.9]} 52... Rb3 {[%clk
0:00:05.9]} 53. Rd5 {[%clk 0:00:07]} 53... Rxa3 {[%clk 0:00:05.9]} 54. Kg2
{[%clk 0:00:07.3]} 54... Kg6 {[%clk 0:00:05.4]} 55. Rxb5 {[%clk 0:00:07.5]}
55... Ra2+ {[%clk 0:00:04.8]} 56. Kh3 {[%clk 0:00:07.2]} 56... Ra1 {[%clk
0:00:05.5]} 57. Rb6+ {[%clk 0:00:07.6]} 57... Kh5 {[%clk 0:00:05.8]} 58. Rf6
{[%clk 0:00:07.5]} 58... Ra5 {[%clk 0:00:04.3]} 59. Kg2 {[%clk 0:00:05.8]} 59...
Ra2+ {[%clk 0:00:04.5]} 60. Kf3 {[%clk 0:00:06]} 60... Ra3+ {[%clk 0:00:05.1]}
61. Kf2 {[%clk 0:00:06.5]} 61... Ra2+ {[%clk 0:00:05.6]} 62. Kf3 {[%clk
0:00:06.3]} 62... Ra3+ {[%clk 0:00:06.1]} 63. Kg2 {[%clk 0:00:07]} 63... Ra2+
{[%clk 0:00:06.6]} 64. Kh3 {[%clk 0:00:07.7]} 64... Ra5 {[%clk 0:00:07.2]} 65.
Rf8 {[%clk 0:00:07.8]} 65... Rb5 {[%clk 0:00:06]} 66. Rg8 {[%clk 0:00:07.9]}
66... Rc5 {[%clk 0:00:02.3]} 67. Rg5+ {[%clk 0:00:07.9]} 67... Kh6 {[%clk
0:00:03.1]} 68. Kh4 {[%clk 0:00:07.8]} 68... Rb5 {[%clk 0:00:03.7]} 69. g4
{[%clk 0:00:07.5]} 69... Rb1 {[%clk 0:00:04]} 70. Rxf5 {[%clk 0:00:07.6]} 1-0

[Event "Late-Titled-Tuesday-Blitz-April-30-2024"]
[Site "Chess.com"]
[Date "2024.04.30"]
[Round "3"]
[White "dimitrisl"]
[Black "ansko1999"]
[Result "0-1"]
[WhiteElo "2432"]
[BlackElo "2627"]
[TimeControl "180+1"]
[EndTime "14:30:47 PDT"]
[Termination "ansko1999 won on time"]

1. e4 {[%clk 0:03:00.1]} 1... c5 {[%clk 0:03:00]} 2. Nf3 {[%clk 0:03:00.1]} 2...
Nf6 {[%clk 0:03:00.2]} 3. Nc3 {[%clk 0:02:59.8]} 3... d5 {[%clk 0:02:59.5]} 4.
d3 {[%clk 0:02:55.4]} 4... dxe4 {[%clk 0:02:57.6]} 5. Nxe4 {[%clk 0:02:55.3]}
5... Nxe4 {[%clk 0:02:57.2]} 6. dxe4 {[%clk 0:02:56.2]} 6... Qxd1+ {[%clk
0:02:57.2]} 7. Kxd1 {[%clk 0:02:57.1]} 7... Nc6 {[%clk 0:02:55.2]} 8. c3 {[%clk
0:02:56.9]} 8... Bg4 {[%clk 0:02:51.2]} 9. Kc2 {[%clk 0:02:50.5]} 9... a6 {[%clk
0:02:29.2]} 10. Nd2 {[%clk 0:02:50.2]} 10... Bh5 {[%clk 0:02:24.9]} 11. Nc4
{[%clk 0:02:49.5]} 11... f6 {[%clk 0:02:01]} 12. Be3 {[%clk 0:02:41.5]} 12... e6
{[%clk 0:01:54.5]} 13. a4 {[%clk 0:02:40.2]} 13... Be7 {[%clk 0:01:47]} 14. f3
{[%clk 0:02:39.8]} 14... Bf7 {[%clk 0:01:45.7]} 15. Be2 {[%clk 0:02:39.5]} 15...
O-O-O {[%clk 0:01:39.1]} 16. Bf4 {[%clk 0:02:30.3]} 16... e5 {[%clk 0:01:38]}
17. Be3 {[%clk 0:02:27.4]} 17... h5 {[%clk 0:01:34.7]} 18. Rhd1 {[%clk
0:02:16.7]} 18... Kc7 {[%clk 0:01:34]} 19. Rxd8 {[%clk 0:02:02]} 19... Rxd8
{[%clk 0:01:33.4]} 20. b4 {[%clk 0:01:59.2]} 20... Bxc4 {[%clk 0:01:24.8]} 21.
Bxc4 {[%clk 0:01:58.5]} 21... cxb4 {[%clk 0:01:25.4]} 22. a5 {[%clk 0:01:53.5]}
22... bxc3 {[%clk 0:01:24]} 23. Bb6+ {[%clk 0:01:53]} 23... Kc8 {[%clk 0:01:23]}
24. Be6+ {[%clk 0:01:46]} 24... Kb8 {[%clk 0:01:22.3]} 25. Bxd8 {[%clk
0:01:46.6]} 25... Bxd8 {[%clk 0:01:22.2]} 26. Kxc3 {[%clk 0:01:43.9]} 26...
Bxa5+ {[%clk 0:01:21.6]} 27. Kc4 {[%clk 0:01:43]} 27... Kc7 {[%clk 0:01:02.9]}
28. h4 {[%clk 0:01:36.7]} 28... b5+ {[%clk 0:01:00.6]} 29. Kd3 {[%clk
0:01:34.3]} 29... Bb6 {[%clk 0:00:52.5]} 30. Bf7 {[%clk 0:01:23.1]} 30... Bd4
{[%clk 0:00:45.9]} 31. Rc1 {[%clk 0:01:18.7]} 31... Kb6 {[%clk 0:00:46]} 32.
Bxh5 {[%clk 0:01:13.3]} 32... a5 {[%clk 0:00:44.1]} 33. Be8 {[%clk 0:01:08.8]}
33... Nb4+ {[%clk 0:00:44.3]} 34. Kd2 {[%clk 0:01:09.3]} 34... a4 {[%clk
0:00:42.5]} 35. Rb1 {[%clk 0:01:06.2]} 35... Ka5 {[%clk 0:00:39.1]} 36. Bf7
{[%clk 0:00:25.4]} 36... Na6 {[%clk 0:00:18.9]} 37. Rc1 {[%clk 0:00:18.4]} 37...
Nc5 {[%clk 0:00:16.6]} 38. Kc2 {[%clk 0:00:10.7]} 38... b4 {[%clk 0:00:14.6]}
39. h5 {[%clk 0:00:05.7]} 39... b3+ {[%clk 0:00:13.8]} 40. Kb1 {[%clk
0:00:04.5]} 40... Nd3 {[%clk 0:00:07]} 41. Rc8 {[%clk 0:00:04.4]} 41... Kb4
{[%clk 0:00:05.4]} 42. Rb8+ {[%clk 0:00:04.6]} 42... Kc3 {[%clk 0:00:04.9]} 43.
Ra8 {[%clk 0:00:05.3]} 43... Nc5 {[%clk 0:00:04.8]} 44. Be8 {[%clk 0:00:04.8]}
44... b2 {[%clk 0:00:02.6]} 45. Bxa4 {[%clk 0:00:04.6]} 45... Kd3 {[%clk
0:00:02]} 46. Bc2+ {[%clk 0:00:04.8]} 46... Ke3 {[%clk 0:00:02.2]} 47. Rb8
{[%clk 0:00:05.4]} 47... Kf4 {[%clk 0:00:01.4]} 48. Rg8 {[%clk 0:00:05.8]} 48...
Kg3 {[%clk 0:00:01.1]} 49. Rxg7+ {[%clk 0:00:06.7]} 49... Kf2 {[%clk 0:00:02]}
50. h6 {[%clk 0:00:07.2]} 50... Ne6 {[%clk 0:00:01.7]} 51. h7 {[%clk 0:00:08.1]}
51... Nxg7 {[%clk 0:00:02.2]} 52. h8=Q {[%clk 0:00:08.6]} 52... Ne6 {[%clk
0:00:03.1]} 53. Qxf6 {[%clk 0:00:07]} 53... Nf4 {[%clk 0:00:04]} 54. g4 {[%clk
0:00:05.6]} 54... Kxf3 {[%clk 0:00:04.3]} 55. g5 {[%clk 0:00:06]} 55... Ke3
{[%clk 0:00:04.8]} 56. g6 {[%clk 0:00:06.5]} 56... Ne2 {[%clk 0:00:05.4]} 57. g7
{[%clk 0:00:06.3]} 57... Nc3+ {[%clk 0:00:06.1]} 58. Kxb2 {[%clk 0:00:07.2]}
58... Nxe4+ {[%clk 0:00:06.2]} 59. Kb3 {[%clk 0:00:06.9]} 59... Nxf6 {[%clk
0:00:07.1]} 60. Bh7 {[%clk 0:00:07.7]} 60... Kf4 {[%clk 0:00:06.3]} 61. g8=Q
{[%clk 0:00:07.9]} 61... Nxg8 {[%clk 0:00:06.9]} 62. Bxg8 {[%clk 0:00:08.8]}
62... e4 {[%clk 0:00:07.8]} 63. Kc4 {[%clk 0:00:09.6]} 63... e3 {[%clk
0:00:07.6]} 64. Kd3 {[%clk 0:00:07.1]} 64... Kf3 {[%clk 0:00:07.7]} 65. Bd5+
{[%clk 0:00:07.6]} 65... Kf2 {[%clk 0:00:08]} 0-1

[Event "Late-Titled-Tuesday-Blitz-April-30-2024"]
[Site "Chess.com"]
[Date "2024.04.30"]
[Round "3"]
[White "shrek4life02"]
[Black "frederiksvane"]
[Result "1-0"]
[WhiteElo "2725"]
[BlackElo "3002"]
[TimeControl "180+1"]
[EndTime "14:30:49 PDT"]
[Termination "shrek4life02 won by checkmate"]

1. e4 {[%clk 0:03:00.9]} 1... e6 {[%clk 0:02:52.4]} 2. d4 {[%clk 0:03:00.9]}
2... d5 {[%clk 0:02:52.7]} 3. Nc3 {[%clk 0:03:01.8]} 3... Bb4 {[%clk 0:02:51.6]}
4. e5 {[%clk 0:03:02.1]} 4... b6 {[%clk 0:02:50.2]} 5. Qg4 {[%clk 0:02:53.1]}
5... Bf8 {[%clk 0:02:50]} 6. h4 {[%clk 0:02:45.6]} 6... h5 {[%clk 0:02:49.8]} 7.
Qg3 {[%clk 0:02:44.9]} 7... Ba6 {[%clk 0:02:49.1]} 8. Bxa6 {[%clk 0:02:43.4]}
8... Nxa6 {[%clk 0:02:49.9]} 9. Nf3 {[%clk 0:02:42.9]} 9... Ne7 {[%clk
0:02:47.2]} 10. O-O {[%clk 0:02:42]} 10... Nf5 {[%clk 0:02:47.1]} 11. Qh3 {[%clk
0:02:41.5]} 11... Be7 {[%clk 0:02:42.8]} 12. Bg5 {[%clk 0:02:40.7]} 12... Bxg5
{[%clk 0:02:40.9]} 13. hxg5 {[%clk 0:02:38.4]} 13... g6 {[%clk 0:02:12]} 14.
Rad1 {[%clk 0:02:28.3]} 14... Qd7 {[%clk 0:02:09.4]} 15. Nh4 {[%clk 0:02:22.9]}
15... Ne7 {[%clk 0:02:05.4]} 16. a4 {[%clk 0:02:14]} 16... O-O-O {[%clk
0:02:04.3]} 17. Nb5 {[%clk 0:02:04.5]} 17... Kb7 {[%clk 0:02:02.5]} 18. c3
{[%clk 0:02:00.8]} 18... Nb8 {[%clk 0:02:00.4]} 19. Qd3 {[%clk 0:02:00]} 19...
a6 {[%clk 0:01:58.3]} 20. Na3 {[%clk 0:01:58.8]} 20... Qxa4 {[%clk 0:01:57.2]}
21. Ra1 {[%clk 0:01:58.8]} 21... Qd7 {[%clk 0:01:54.9]} 22. Nc2 {[%clk
0:01:57.4]} 22... Qb5 {[%clk 0:01:48.5]} 23. Qd2 {[%clk 0:01:57.2]} 23... Nf5
{[%clk 0:01:48.1]} 24. Nxf5 {[%clk 0:01:56.9]} 24... exf5 {[%clk 0:01:48.8]} 25.
f4 {[%clk 0:01:57.4]} 25... h4 {[%clk 0:01:27]} 26. Kh2 {[%clk 0:01:55.4]} 26...
Nd7 {[%clk 0:01:14.1]} 27. b4 {[%clk 0:01:41.6]} 27... Qc6 {[%clk 0:01:07.9]}
28. Qd3 {[%clk 0:01:33.1]} 28... Qb5 {[%clk 0:01:00.4]} 29. Qd2 {[%clk
0:01:25.5]} 29... Nf8 {[%clk 0:00:54.2]} 30. Na3 {[%clk 0:01:24.8]} 30... Qc6
{[%clk 0:00:54.4]} 31. Rfb1 {[%clk 0:01:23.7]} 31... Ne6 {[%clk 0:00:50.5]} 32.
Nc2 {[%clk 0:01:20.4]} 32... h3 {[%clk 0:00:25.1]} 33. g3 {[%clk 0:01:20]} 33...
Ra8 {[%clk 0:00:20.8]} 34. Ne1 {[%clk 0:01:09.7]} 34... Qc4 {[%clk 0:00:18.1]}
35. Qd3 {[%clk 0:01:05.9]} 35... Qxd3 {[%clk 0:00:16.9]} 36. Nxd3 {[%clk
0:01:06.8]} 36... Kc6 {[%clk 0:00:17.4]} 37. b5+ {[%clk 0:01:04.5]} 37... axb5
{[%clk 0:00:05]} 38. Nb4+ {[%clk 0:01:04.8]} 38... Kb7 {[%clk 0:00:04.7]} 39.
Nxd5 {[%clk 0:01:05.7]} 39... Rxa1 {[%clk 0:00:04.8]} 40. Rxa1 {[%clk
0:01:06.6]} 40... Rd8 {[%clk 0:00:04.7]} 41. Nf6 {[%clk 0:01:00.3]} 41... c6
{[%clk 0:00:05.2]} 42. Kxh3 {[%clk 0:00:59.4]} 42... b4 {[%clk 0:00:05.7]} 43.
cxb4 {[%clk 0:00:44.6]} 43... Rxd4 {[%clk 0:00:05.9]} 44. Ne8 {[%clk 0:00:45.3]}
44... Rxb4 {[%clk 0:00:04.5]} 45. Nd6+ {[%clk 0:00:46.2]} 45... Kb8 {[%clk
0:00:04.6]} 46. Nxf7 {[%clk 0:00:46.6]} 46... Rb3 {[%clk 0:00:04.7]} 47. Kg2
{[%clk 0:00:45.7]} 47... c5 {[%clk 0:00:04.9]} 48. Rd1 {[%clk 0:00:44.6]} 48...
Rb2+ {[%clk 0:00:04.4]} 49. Kh3 {[%clk 0:00:44.6]} 49... Nd4 {[%clk 0:00:04.9]}
50. Rd3 {[%clk 0:00:33.2]} 50... Kc7 {[%clk 0:00:05.1]} 51. Nh8 {[%clk
0:00:33.6]} 51... Rf2 {[%clk 0:00:04.2]} 52. Nxg6 {[%clk 0:00:29.7]} 52... Nf3
{[%clk 0:00:04.3]} 53. g4 {[%clk 0:00:30.4]} 53... Ne1 {[%clk 0:00:04.1]} 54.
Re3 {[%clk 0:00:26.3]} 54... Nc2 {[%clk 0:00:03.7]} 55. Rc3 {[%clk 0:00:23.3]}
55... Nd4 {[%clk 0:00:04.3]} 56. gxf5 {[%clk 0:00:17.3]} 56... Nxf5 {[%clk
0:00:05.2]} 57. Kg4 {[%clk 0:00:17.4]} 57... Nd4 {[%clk 0:00:05.7]} 58. Nh4
{[%clk 0:00:15.4]} 58... Rf1 {[%clk 0:00:05.9]} 59. g6 {[%clk 0:00:15.5]} 59...
Rg1+ {[%clk 0:00:06.1]} 60. Rg3 {[%clk 0:00:14.3]} 60... Rh1 {[%clk 0:00:05.5]}
61. g7 {[%clk 0:00:13.7]} 61... c4 {[%clk 0:00:02.5]} 62. g8=Q {[%clk 0:00:14]}
62... b5 {[%clk 0:00:02.5]} 63. Qf7+ {[%clk 0:00:13.5]} 63... Kc6 {[%clk
0:00:02.6]} 64. Qe8+ {[%clk 0:00:13]} 64... Kc5 {[%clk 0:00:02.8]} 65. Qe7+
{[%clk 0:00:12.5]} 65... Kd5 {[%clk 0:00:03.2]} 66. Qb7+ {[%clk 0:00:11.9]}
66... Kc5 {[%clk 0:00:03.3]} 67. Qxh1 {[%clk 0:00:11.9]} 67... b4 {[%clk
0:00:03.3]} 68. Qg1 {[%clk 0:00:11.7]} 68... b3 {[%clk 0:00:03.1]} 69. e6 {[%clk
0:00:12.4]} 69... b2 {[%clk 0:00:02.1]} 70. e7 {[%clk 0:00:13.1]} 70... c3
{[%clk 0:00:02.3]} 71. e8=Q {[%clk 0:00:13.3]} 71... c2 {[%clk 0:00:02.7]} 72.
Qe5+ {[%clk 0:00:13.5]} 72... Kc4 {[%clk 0:00:03.2]} 73. Qgxd4# {[%clk
0:00:13.8]} 1-0

[Event "Late-Titled-Tuesday-Blitz-April-30-2024"]
[Site "Chess.com"]
[Date "2024.04.30"]
[Round "3"]
[White "TheSilmarils"]
[Black "IamSchrodingersCat"]
[Result "1-0"]
[WhiteElo "2924"]
[BlackElo "2664"]
[TimeControl "180+1"]
[EndTime "14:30:49 PDT"]
[Termination "TheSilmarils won on time"]

1. Nf3 {[%clk 0:03:00.9]} 1... Nf6 {[%clk 0:02:59.7]} 2. c4 {[%clk 0:03:01.2]}
2... g6 {[%clk 0:02:59.6]} 3. Nc3 {[%clk 0:03:01.5]} 3... Bg7 {[%clk 0:03:00]}
4. e4 {[%clk 0:03:01.9]} 4... d6 {[%clk 0:03:00.5]} 5. d4 {[%clk 0:03:02.3]}
5... O-O {[%clk 0:03:00.7]} 6. h3 {[%clk 0:03:02.9]} 6... Na6 {[%clk 0:03:00.7]}
7. Bg5 {[%clk 0:03:02.2]} 7... h6 {[%clk 0:03:00.2]} 8. Be3 {[%clk 0:03:02.1]}
8... e5 {[%clk 0:03:00]} 9. d5 {[%clk 0:03:02.3]} 9... Nc5 {[%clk 0:02:59.8]}
10. Nd2 {[%clk 0:03:02.9]} 10... a5 {[%clk 0:02:58.8]} 11. Be2 {[%clk
0:03:03.5]} 11... h5 {[%clk 0:02:47.3]} 12. g4 {[%clk 0:02:59.4]} 12... hxg4
{[%clk 0:02:48.2]} 13. hxg4 {[%clk 0:02:59.7]} 13... Nh7 {[%clk 0:02:48.4]} 14.
Nb3 {[%clk 0:02:37.2]} 14... Nxb3 {[%clk 0:02:36.3]} 15. Qxb3 {[%clk 0:02:15.4]}
15... Bf6 {[%clk 0:02:36.1]} 16. O-O-O {[%clk 0:02:12.1]} 16... Bg5 {[%clk
0:02:33.2]} 17. Rd3 {[%clk 0:02:00.7]} 17... Bxe3+ {[%clk 0:02:20.4]} 18. Rxe3
{[%clk 0:02:01.6]} 18... Ng5 {[%clk 0:02:20.6]} 19. Qd1 {[%clk 0:01:32.2]} 19...
Bd7 {[%clk 0:02:01.3]} 20. Rg3 {[%clk 0:01:25.2]} 20... Qf6 {[%clk 0:01:55.1]}
21. Qd2 {[%clk 0:01:01.5]} 21... Kg7 {[%clk 0:01:43.2]} 22. Rgg1 {[%clk
0:00:52]} 22... Rh8 {[%clk 0:01:38.6]} 23. Qe3 {[%clk 0:00:48.2]} 23... Rxh1
{[%clk 0:01:23]} 24. Rxh1 {[%clk 0:00:49.1]} 24... Rh8 {[%clk 0:01:09.2]} 25.
Rxh8 {[%clk 0:00:48.9]} 25... Kxh8 {[%clk 0:01:10.1]} 26. Kd2 {[%clk 0:00:48.3]}
26... b6 {[%clk 0:01:07]} 27. Qg3 {[%clk 0:00:42]} 27... Kg7 {[%clk 0:01:04.7]}
28. f3 {[%clk 0:00:42]} 28... Qd8 {[%clk 0:01:02.4]} 29. a3 {[%clk 0:00:35.8]}
29... Qh8 {[%clk 0:01:00.8]} 30. Qg2 {[%clk 0:00:32.6]} 30... Qh6 {[%clk
0:00:56.7]} 31. Kc2 {[%clk 0:00:32.3]} 31... Nh3 {[%clk 0:00:52.6]} 32. Bf1
{[%clk 0:00:30.2]} 32... Nf4 {[%clk 0:00:51.5]} 33. Qf2 {[%clk 0:00:29]} 33...
Qh1 {[%clk 0:00:46.2]} 34. b4 {[%clk 0:00:28.4]} 34... axb4 {[%clk 0:00:47.1]}
35. axb4 {[%clk 0:00:29.1]} 35... g5 {[%clk 0:00:31.5]} 36. Kb3 {[%clk
0:00:29.6]} 36... Qh8 {[%clk 0:00:29.5]} 37. Qa2 {[%clk 0:00:27.3]} 37... Qh1
{[%clk 0:00:28.1]} 38. Qf2 {[%clk 0:00:27.3]} 38... Qh8 {[%clk 0:00:27.2]} 39.
Ne2 {[%clk 0:00:25.7]} 39... Qa8 {[%clk 0:00:23.2]} 40. Nc3 {[%clk 0:00:23.3]}
40... Qa1 {[%clk 0:00:21.8]} 41. Be2 {[%clk 0:00:16.4]} 41... Qc1 {[%clk
0:00:17.7]} 42. Qf1 {[%clk 0:00:14.9]} 42... Qd2 {[%clk 0:00:15.9]} 43. Qd1
{[%clk 0:00:13.6]} 43... Qe3 {[%clk 0:00:15.5]} 44. Kb2 {[%clk 0:00:13.2]} 44...
Kg6 {[%clk 0:00:12.9]} 45. Qc2 {[%clk 0:00:13.1]} 45... Ng2 {[%clk 0:00:10.9]}
46. Qc1 {[%clk 0:00:11.9]} 46... Qf2 {[%clk 0:00:09]} 47. Qd2 {[%clk 0:00:10.7]}
47... Nf4 {[%clk 0:00:09.3]} 48. Kc2 {[%clk 0:00:11.2]} 48... Qg1 {[%clk
0:00:05.9]} 49. Bd1 {[%clk 0:00:11.7]} 49... Kg7 {[%clk 0:00:05.1]} 50. Kb3
{[%clk 0:00:12.2]} 50... Qf1 {[%clk 0:00:04.9]} 51. Qa2 {[%clk 0:00:10.7]} 51...
b5 {[%clk 0:00:04.2]} 52. c5 {[%clk 0:00:06.9]} 52... Qc4+ {[%clk 0:00:03.1]}
53. Kb2 {[%clk 0:00:06.9]} 53... Qd4 {[%clk 0:00:02]} 54. cxd6 {[%clk
0:00:06.2]} 54... cxd6 {[%clk 0:00:02.9]} 55. Bc2 {[%clk 0:00:06.1]} 55... Qxb4+
{[%clk 0:00:02.8]} 56. Qb3 {[%clk 0:00:05.9]} 56... Qc5 {[%clk 0:00:03.4]} 57.
Nd1 {[%clk 0:00:04.2]} 57... b4 {[%clk 0:00:03.4]} 58. Ne3 {[%clk 0:00:04.8]}
58... Bb5 {[%clk 0:00:02.8]} 59. Nf5+ {[%clk 0:00:05.3]} 59... Kf6 {[%clk
0:00:03.4]} 60. Qe3 {[%clk 0:00:05.5]} 60... Qxe3 {[%clk 0:00:02]} 61. Nxe3
{[%clk 0:00:06.4]} 61... Bd3 {[%clk 0:00:01.5]} 62. Nf5 {[%clk 0:00:06.2]} 62...
Be2 {[%clk 0:00:01.9]} 63. Nxd6 {[%clk 0:00:05.1]} 63... Bxf3 {[%clk 0:00:02.6]}
64. Nf5 {[%clk 0:00:04.9]} 64... Bxg4 {[%clk 0:00:03.1]} 65. Ne3 {[%clk
0:00:04.4]} 65... Bd7 {[%clk 0:00:03.3]} 66. Kb3 {[%clk 0:00:05.3]} 66... g4
{[%clk 0:00:03.5]} 67. Bd1 {[%clk 0:00:03.5]} 67... g3 {[%clk 0:00:03.5]} 68.
Bf3 {[%clk 0:00:04.2]} 68... Nd3 {[%clk 0:00:03.2]} 69. Bg2 {[%clk 0:00:04.4]}
69... Ne1 {[%clk 0:00:03]} 70. Kxb4 {[%clk 0:00:03.7]} 70... Nxg2 {[%clk
0:00:01.5]} 71. Nxg2 {[%clk 0:00:04.6]} 71... Bh3 {[%clk 0:00:01.1]} 72. Ne1
{[%clk 0:00:04.3]} 72... g2 {[%clk 0:00:02]} 73. Nf3 {[%clk 0:00:04.8]} 1-0